bitfinex-derivatives/quotes_ETHF0:USTF0_20260204
["timestamp","ask_amount","ask_price","bid_price","bid_amount"]
[1770201803021,0.23301635,2260.5,2259.9,0.25677399]
[1770201803422,39.78307196,2260.5,2259.9,0.25677399]
[1770201803925,39.55005561,2260.5,2259.9,0.25677399]
[1770201804128,39.55005561,2260.6,2259.9,0.25677399]
[1770201804823,39.55005561,2260.6,2259.6,6.77111877]
[1770201804824,0.23301635,2260.5,2259.6,5.30190203]
[1770201805027,41.01369327,2259.7,2258.5,3.53009282]
[1770201805329,2.64403506,2258.9,2258.5,12.4398684]
[1770201805528,4.083,2258.8,2258.5,12.4398684]
[1770201806127,4.08698423,2258.8,2258.6,0.8851]
[1770201806524,4.32000058,2258.8,2258.6,0.27161557]
[1770201806728,4.089,2258.8,2258.6,12.71148397]
[1770201807126,4.08533203,2258.8,2258.6,12.96825796]
[1770201807328,3.01133204,2258.8,2258.6,12.96825796]
[1770201807724,3.01497115,2258.8,2258.7,0.31446837]
[1770201807924,4.089,2259.1,2258.7,0.31446837]
[1770201808128,4.089,2259.2,2258.9,0.31446837]
[1770201808626,2.64403506,2259.6,2259.0,12.75069766]
[1770201808822,6.73303506,2259.6,2259.0,0.31446837]
[1770201809029,4.09433657,2259.6,2259.0,0.31446837]
[1770201811128,4.09433657,2259.6,2258.8,0.31290249]
[1770201812428,4.32735292,2259.6,2258.8,0.31290249]
[1770201815831,4.09433657,2259.6,2259.0,0.30425356]
[1770201817432,0.00533657,2259.6,2259.0,0.30425356]
[1770201819533,6.96405141,2260.3,2259.2,0.30621794]
[1770201819934,6.96405141,2260.3,2259.4,0.30160717]
[1770201820332,6.96405141,2260.3,2259.7,10.53839863]
[1770201820535,6.96716982,2260.3,2259.7,10.53839863]
[1770201820836,6.96716982,2260.3,2259.7,12.43622929]
[1770201821230,6.73415347,2260.3,2259.8,0.30145613]
[1770201821434,4.09011841,2260.3,2259.8,0.30145613]
[1770201822629,4.32313476,2260.3,2259.9,12.43622929]
[1770201822834,4.32313476,2260.3,2259.8,0.30145613]
[1770201823332,4.09011841,2260.3,2259.8,0.30145613]
[1770201824235,3.95757329,2260.2,2259.8,0.30145613]
[1770201824535,3.95757329,2260.1,2259.8,0.30145613]
[1770201824734,6.73415347,2260.3,2259.9,12.73152195]
[1770201825030,3.97225886,2260.2,2259.9,0.29529266]
[1770201825236,3.97225886,2260.1,2259.9,0.29529266]
[1770201825530,6.73415347,2260.3,2260.0,12.43622929]
[1770201825734,3.97294756,2260.2,2260.0,12.43622929]
[1770201825935,3.97294756,2260.1,2260.0,12.43622929]
[1770201826135,3.97294756,2260.2,2260.0,12.43622929]
[1770201826336,3.97294756,2260.1,2260.0,12.43622929]
[1770201826735,3.97294756,2260.2,2260.0,11.36222929]
[1770201827039,3.97294756,2260.1,2260.0,11.36222929]
[1770201827241,3.97294756,2260.2,2260.0,11.36222929]
[1770201828942,3.97294756,2260.2,2260.0,12.24712929]
[1770201829239,3.97294756,2260.1,2260.0,12.24712929]
[1770201829441,3.87780059,2260.1,2260.0,12.24712929]
[1770201829640,1.57003506,2260.2,2260.0,12.24712929]
[1770201831336,39.6605259,2260.3,2260.1,0.4978894]
[1770201831642,4.133,2260.5,2260.1,10.29008363]
[1770201832240,4.133,2260.5,2260.2,0.4978894]
[1770201832439,4.13613853,2260.5,2260.2,0.50284351]
[1770201834343,4.13613853,2260.5,2260.2,0.00495411]
[1770201836145,4.13613853,2260.5,2260.2,0.50284351]
[1770201836646,0.00313853,2260.5,2260.2,10.29503774]
[1770201836945,0.00313853,2260.5,2260.3,0.55502807]
[1770201837140,4.65437437,2260.8,2260.3,0.55502807]
[1770201837341,4.132,2260.8,2260.3,0.55502807]
[1770201838140,4.1368192,2260.8,2260.3,0.55502807]
[1770201839044,5.28869371,2260.9,2260.5,0.55502807]
[1770201839245,5.81106808,2260.9,2260.4,9.79219423]
[1770201839445,0.52237437,2260.8,2260.4,9.79219423]
[1770201839945,5.28869371,2260.9,2260.4,9.79219423]
[1770201840146,4.07207842,2260.9,2260.4,9.79219423]
[1770201840347,4.07207842,2260.9,2260.4,9.56577022]
[1770201841542,3.88445578,2260.8,2260.4,6.25332637]
[1770201841748,6.61001984,2260.6,2260.0,0.8849]
[1770201841948,6.61001984,2260.2,2259.3,0.66622266]
[1770201842247,7.13645578,2260.1,2259.3,0.66622266]
[1770201842446,3.88445578,2260.0,2259.4,6.25332637]
[1770201842643,3.96463001,2259.9,2259.4,6.25332637]
[1770201842847,3.96463001,2259.8,2259.4,3.39039753]
[1770201843046,3.96463001,2259.7,2259.1,0.66845521]
[1770201843240,3.96463001,2259.6,2259.1,0.66845521]
[1770201843438,3.88445578,2259.5,2259.2,0.2707]
[1770201843645,3.88445578,2259.4,2258.8,0.66845521]
[1770201843940,3.88445578,2259.3,2258.8,0.67355791]
[1770201844143,3.88445578,2259.2,2258.8,0.67355791]
[1770201848053,0.00358433,2259.3,2258.8,0.67355791]
[1770201848250,3.88371433,2259.2,2258.8,0.67355791]
[1770201848454,0.00358433,2259.3,2258.8,0.67355791]
[1770201848754,3.8830744,2259.2,2258.8,0.67355791]
[1770201848953,0.00358433,2259.3,2258.8,0.67355791]
[1770201849154,3.88308503,2259.2,2258.8,0.67355791]
[1770201849354,0.00358433,2259.3,2258.8,0.67355791]
[1770201849654,3.88253455,2259.2,2258.8,0.67355791]
[1770201849849,0.00358433,2259.3,2258.8,0.67355791]
[1770201850048,3.88288439,2259.2,2258.8,0.67355791]
[1770201850249,0.00358433,2259.3,2258.8,0.67355791]
[1770201850447,3.88193944,2259.2,2258.8,0.67355791]
[1770201850653,0.00358433,2259.3,2258.8,0.67355791]
[1770201850854,3.88377259,2259.2,2258.8,0.67355791]
[1770201851051,0.00358433,2259.3,2258.8,0.67355791]
[1770201851254,3.88356911,2259.2,2258.8,0.67355791]
[1770201851456,0.00358433,2259.3,2258.8,0.67355791]
[1770201851657,3.88268689,2259.2,2258.8,0.67355791]
[1770201851857,0.00358433,2259.3,2258.8,0.67355791]
[1770201852052,3.88277364,2259.2,2258.8,0.67355791]
[1770201852256,0.00358433,2259.3,2258.8,0.67355791]
[1770201853561,3.88129378,2259.2,2258.8,0.75793185]
[1770201853761,0.00358433,2259.3,2258.8,0.75793185]
[1770201853961,2.8072855,2259.2,2258.8,0.75793185]
[1770201854260,0.00358433,2259.3,2258.8,0.75793185]
[1770201861161,5.2735079,2260.0,2259.3,0.82713516]
[1770201861367,39.56814635,2260.4,2259.6,0.82713516]
[1770201861865,0.16498237,2260.5,2259.6,0.82713516]
[1770201862365,0.17025971,2260.5,2259.6,0.82713516]
[1770201870370,1.46528172,2260.4,2259.6,0.82713516]
[1770201873276,39.57342369,2260.5,2259.7,0.82713516]
[1770201873677,0.00527734,2260.5,2259.7,0.82713516]
[1770201879674,0.00527734,2260.5,2260.0,0.82713516]
[1770201879880,39.56814635,2260.9,2260.0,0.82713516]
[1770201880080,43.67514635,2260.9,2260.0,0.82713516]
[1770201880378,39.56814635,2260.9,2260.2,0.82713516]
[1770201880579,43.67614635,2260.9,2260.2,0.82713516]
[1770201880773,43.68052657,2260.9,2260.2,0.82713516]
[1770201885681,4.134,2260.8,2260.2,0.82713516]
[1770201887185,43.70214635,2260.8,2260.2,0.82713516]
[1770201888484,0.32596092,2260.5,2259.7,0.82713516]
[1770201888984,1.46528172,2260.6,2259.7,0.82713516]
[1770201889188,41.03342807,2260.6,2259.7,0.82713516]
[1770201889583,41.36250926,2260.6,2259.7,0.82713516]
[1770201889784,39.56814635,2260.5,2259.7,0.82713516]
[1770201890884,0.34234744,2260.3,2259.7,0.82713516]
[1770201891084,41.37577551,2260.0,2259.3,0.90446863]
[1770201891491,2.65128626,2259.7,2259.3,0.90446863]
[1770201892091,2.65128626,2259.8,2259.3,0.90446863]
[1770201892489,2.65128626,2259.8,2258.9,1.46528172]
[1770201892490,2.65049448,2260.0,2259.7,0.90446863]
[1770201892690,4.161,2260.3,2259.9,0.90446863]
[1770201894185,6.11215612,2260.6,2259.9,0.90446863]
[1770201894390,3.166,2260.5,2259.9,0.90446863]
[1770201895284,4.99864822,2260.6,2259.9,0.90446863]
[1770201897788,10.33315732,2260.8,2259.9,0.90446863]
[1770201897991,0.90064942,2260.7,2259.9,0.90446863]
[1770201902492,5.2735079,2260.6,2259.9,0.90446863]
[1770201910698,6.17415732,2260.6,2259.9,0.90446863]
[1770201916298,0.90064942,2260.5,2259.9,0.90446863]
[1770201916999,0.90064942,2260.5,2259.8,0.22157]
[1770201917198,0.90064942,2260.4,2259.8,0.22157]
[1770201921299,1.0365061,2260.3,2259.8,0.22157]
[1770201922402,5.2735079,2260.4,2259.8,1.17817376]
[1770201922601,39.76666222,2260.3,2259.8,1.17817376]
[1770201922798,40.80316832,2260.4,2259.9,0.95660376]
[1770201922996,40.80316832,2260.6,2259.9,0.95660376]
[1770201923200,40.80316832,2260.7,2260.1,0.95660376]
[1770201924002,0.00438022,2260.9,2260.4,0.22151]
[1770201924003,39.77104244,2260.9,2260.4,0.22151]
[1770201924199,1.04088632,2260.9,2260.4,1.18228142]
[1770201924400,1.04088632,2260.9,2260.4,0.22567766]
[1770201925201,0.00438022,2260.9,2260.4,1.18228142]
[1770201925601,1.04088632,2260.9,2260.4,1.18228142]
[1770201931805,1.04088632,2260.9,2260.4,0.22567766]
[1770201932011,1.0365061,2260.7,2259.9,2.87318608]
[1770201932210,1.0365061,2260.7,2259.9,0.22156]
[1770201932512,1.0365061,2260.5,2259.8,0.1]
[1770201933011,1.0365061,2260.3,2259.5,0.2216]
[1770201933206,1.0365061,2260.2,2259.5,0.2216]
[1770201934009,1.0365061,2260.2,2259.5,0.22733598]
[1770201934803,1.0365061,2260.2,2259.5,1.18393974]
[1770201937318,4.164,2260.3,2259.5,1.18393974]
[1770201937919,1.0365061,2260.2,2259.5,1.18393974]
[1770201941720,40.80316832,2260.4,2259.6,0.22159]
[1770201941922,40.80316832,2260.4,2259.7,0.95660376]
[1770201942523,40.80316832,2260.4,2259.7,1.17818376]
[1770201946923,1.0365061,2260.3,2259.7,1.17818376]
[1770201952520,2.6426837,2260.4,2259.8,0.22157]
[1770201952725,6.8526837,2260.6,2259.7,0.95660376]
[1770201953022,7.98306177,2260.6,2259.7,0.95660376]
[1770201953624,3.77306177,2260.6,2259.9,1.34312614]
[1770201953826,1.13037807,2260.6,2259.9,1.34312614]
[1770201957428,1.06248574,2260.5,2259.9,1.34312614]
[1770201961031,1.06248574,2260.5,2259.9,0.22156]
[1770201961526,1.06248574,2259.9,2259.5,0.00573598]
[1770201961732,1.06248574,2259.7,2259.1,3.73320159]
[1770201962027,1.06248574,2259.7,2259.0,2.65162608]
[1770201962331,2.6426837,2259.9,2259.4,1.08157551]
[1770201962729,2.6426837,2260.1,2259.4,1.08614719]
[1770201962929,3.70516944,2260.1,2259.4,1.08614719]
[1770201963830,1.06248574,2260.0,2259.4,0.00457168]
[1770201964030,1.06248574,2259.9,2259.4,0.00457168]
[1770201964224,1.06248574,2259.8,2259.4,0.00457168]
[1770201964930,1.06248574,2259.8,2259.0,1.08157551]
[1770201965833,1.06248574,2259.8,2259.0,1.08695567]
[1770201966930,1.06248574,2259.4,2259.0,0.00538016]
[1770201970230,4.10649066,2259.7,2259.0,1.08695567]
[1770201970231,2.6426837,2259.7,2259.0,1.08695567]
[1770201970532,3.70516944,2259.8,2259.0,1.30860567]
[1770201970932,3.70516944,2259.8,2259.2,1.08157551]
[1770201971832,1.06248574,2259.8,2259.2,1.08157551]
[1770201973036,1.06248574,2259.9,2259.2,1.08157551]
[1770201975340,2.5262927,2259.9,2259.2,1.08157551]
[1770201975535,1.06248574,2259.9,2259.2,1.08157551]
[1770201976136,1.06248574,2259.9,2259.3,1.08157551]
[1770201980438,3.70516944,2260.1,2259.3,1.08157551]
[1770201980638,1.06248574,2260.3,2259.7,1.08157551]
[1770201981237,1.09423895,2260.0,2259.3,1.08278134]
[1770201981639,1.09423895,2259.6,2259.2,0.22163]
[1770201983741,4.233,2259.9,2259.2,1.30441134]
[1770201984443,5.32723895,2259.9,2259.2,1.30441134]
[1770201984644,1.09423895,2259.8,2259.2,1.30441134]
[1770201988037,6.8756837,2259.9,2259.2,1.30441134]
[1770201988439,1.09423895,2259.8,2259.2,1.30441134]
[1770201990946,2.55804591,2259.6,2259.0,0.00538016]
[1770201991144,1.09423895,2259.3,2259.0,0.00538016]
[1770201991440,0.00400218,2259.3,2258.8,1.30445134]
[1770201992239,0.00400218,2259.3,2258.8,1.30963327]
[1770201992638,0.00400218,2259.3,2259.0,1.08278134]
[1770201992844,2.6426837,2259.5,2259.2,1.08278134]
[1770201993044,2.6426837,2259.6,2259.2,1.08278134]
[1770201993549,1.09423895,2259.2,2258.8,0.00518193]
[1770201993747,1.09862145,2259.2,2258.8,0.00518193]
[1770201995548,1.09423895,2259.0,2258.5,0.2217]
[1770201996144,1.09423895,2259.0,2258.5,1.30448134]
[1770201996348,0.0043825,2259.2,2258.5,1.30448134]
[1770201996548,0.0043825,2259.2,2258.5,1.30853204]
[1770201996746,1.09862145,2259.2,2258.5,1.30853204]
[1770201997048,1.09423895,2259.1,2258.5,1.30853204]
[1770201998151,0.0043825,2259.2,2258.9,2.5465883]
[1770201998447,0.0043825,2259.2,2258.9,1.08278134]
[1770201998749,0.0043825,2259.2,2258.8,1.08278134]
[1770201999549,0.0043825,2259.2,2258.8,2.5465883]
[1770201999849,0.0043825,2259.2,2258.9,1.08278134]
[1770202002047,0.0043825,2259.2,2258.7,1.30446134]
[1770202002247,1.09862145,2259.2,2258.7,0.22168]
[1770202002947,1.09423895,2259.1,2258.5,1.08683204]
[1770202003747,1.09423895,2259.1,2258.5,0.0040507]
[1770202004144,1.09423895,2259.7,2259.1,1.08278134]
[1770202004449,1.09423895,2259.7,2259.0,1.46380696]
[1770202004646,39.76666222,2259.9,2259.1,1.08278134]
[1770202004847,1.09423895,2259.9,2259.1,1.08278134]
[1770202005049,1.09949546,2259.9,2259.1,1.08278134]
[1770202005650,1.09949546,2259.9,2259.1,1.30442134]
[1770202006150,0.00525651,2259.9,2259.1,1.30442134]
[1770202006550,1.09949546,2259.9,2259.1,1.30442134]
[1770202008544,1.09949546,2259.9,2259.1,0.22164]
[1770202011255,1.09949546,2259.9,2259.1,1.33940146]
[1770202014056,40.86615768,2259.9,2259.1,1.33940146]
[1770202016357,0.00525651,2259.9,2259.1,1.33940146]
[1770202017661,0.00525651,2259.9,2259.3,1.10895344]
[1770202017957,0.00525651,2259.9,2259.3,1.33057344]
[1770202018857,1.1649368,2259.9,2259.3,1.33057344]
[1770202023761,1.1649368,2259.9,2259.4,1.99365344]
[1770202024264,0.00525651,2259.9,2259.5,1.10895344]
[1770202026264,1.1649368,2259.9,2259.4,1.99365344]
[1770202029664,0.00525651,2259.9,2259.5,1.10895344]
[1770202029872,1.15968029,2260.5,2259.8,1.33052344]
[1770202030366,3.96768029,2260.7,2259.9,1.33051344]
[1770202030873,3.97336502,2260.7,2260.1,1.10895344]
[1770202031073,1.894,2260.8,2260.2,1.33049344]
[1770202031272,1.15968029,2261.1,2260.2,1.33049344]
[1770202031770,1.644,2261.2,2260.4,1.33046344]
[1770202031973,1.644,2261.2,2260.6,1.10895344]
[1770202031974,0.00428228,2261.2,2260.6,1.10895344]
[1770202032767,5.47668029,2261.7,2260.9,1.10895344]
[1770202032971,1.15968029,2261.6,2260.9,1.10895344]
[1770202033776,1.16523075,2261.6,2260.9,1.10895344]
[1770202041083,0.00555046,2261.6,2260.9,1.33042344]
[1770202041383,0.00080475,2261.6,2260.9,1.33042344]
[1770202042381,0.00080475,2261.6,2261.1,1.13585428]
[1770202047179,1.18516652,2262.0,2261.1,1.13585428]
[1770202047584,1.18516652,2262.0,2261.1,1.35729428]
[1770202048185,1.19073308,2262.0,2261.1,1.35729428]
[1770202048785,1.19073308,2262.0,2261.1,0.22144]
[1770202048983,1.19073308,2262.0,2261.1,1.35729428]
[1770202059794,39.70413636,2261.9,2261.1,1.35729428]
[1770202061296,40.88930288,2261.8,2261.1,1.35729428]
[1770202061495,39.70413636,2261.8,2261.1,1.35729428]
[1770202063097,0.00556656,2262.0,2261.3,1.13585428]
[1770202063396,0.00556656,2262.0,2261.3,3.76254641]
[1770202063698,0.00556656,2262.0,2261.4,1.13585428]
[1770202063899,0.00556656,2262.0,2261.4,2.01975428]
[1770202064098,0.00556656,2262.0,2261.5,1.13585428]
[1770202067601,1.19073308,2262.0,2261.5,1.13585428]
[1770202067900,0.00556656,2262.0,2261.5,1.13585428]
[1770202068794,1.19073308,2262.0,2261.5,1.13585428]
[1770202069000,1.19073308,2262.0,2261.4,0.8839]
[1770202069201,3.84329644,2262.0,2261.4,2.01975428]
[1770202071103,3.84329644,2262.0,2261.5,1.09568827]
[1770202073407,1.13197347,2261.9,2261.4,0.8839]
[1770202073609,1.13197347,2261.8,2261.4,0.8839]
[1770202074006,1.13197347,2261.8,2261.4,1.97958827]
[1770202074209,3.78453683,2261.9,2261.4,1.97958827]
[1770202074507,8.10353683,2261.9,2261.4,1.97958827]
[1770202074809,6.97156336,2261.9,2261.5,1.09568827]
[1770202076409,6.97156336,2261.9,2261.6,0.8838]
[1770202076905,6.97156336,2261.9,2261.6,2.03607145]
[1770202077615,8.16293426,2261.9,2261.6,0.8838]
[1770202078914,1.1913709,2261.8,2261.6,0.8838]
[1770202079115,1.1913709,2261.8,2261.6,0.8829953]
[1770202079914,8.16293426,2261.9,2261.6,0.8829953]
[1770202080409,1.1913709,2261.8,2261.6,0.8829953]
[1770202080709,1.1913709,2261.8,2261.1,1.15227145]
[1770202080910,2.65351025,2261.4,2260.9,1.15227145]
[1770202081109,1.1913709,2261.4,2260.9,1.15227145]
[1770202081315,1.1913709,2261.3,2260.7,1.15227145]
[1770202081517,4.326,2261.2,2260.7,1.15227145]
[1770202082411,5.5173709,2261.2,2260.7,1.15227145]
[1770202082711,1.1913709,2261.1,2260.6,0.22149]
[1770202083113,1.1913709,2261.1,2260.6,1.37376145]
[1770202083608,4.326,2261.2,2260.7,1.15227145]
[1770202084014,5.5173709,2261.2,2260.7,1.15227145]
[1770202085112,5.5173709,2261.2,2260.6,0.22149]
[1770202085113,1.1913709,2261.1,2260.6,1.37376145]
[1770202085314,1.1913709,2261.1,2260.4,2.62669213]
[1770202085315,1.1913709,2261.1,2260.4,1.15227145]
[1770202086315,1.1913709,2260.8,2260.2,4.00050358]
[1770202086513,1.1913709,2260.8,2260.2,1.37381145]
[1770202088919,1.1913709,2260.8,2260.2,0.22154]
[1770202089520,1.1913709,2260.8,2260.1,0.00426958]
[1770202089719,1.1913709,2260.6,2260.1,0.00426958]
[1770202090419,1.1913709,2260.6,2260.1,1.15654103]
[1770202091414,2.65256336,2261.1,2260.4,2.6144108]
[1770202091415,1.1913709,2261.0,2260.4,2.6144108]
[1770202091619,1.1913709,2261.2,2260.7,1.15227145]
[1770202092717,3.84393426,2261.4,2260.7,1.15227145]
[1770202092922,1.1913709,2261.4,2260.7,1.15227145]
[1770202093116,3.84393426,2261.4,2260.7,1.15227145]
[1770202093326,1.1913709,2261.3,2260.7,1.15227145]
[1770202093525,1.1913709,2261.2,2260.5,0.2215]
[1770202094023,1.1913709,2261.0,2260.2,1.15227145]
[1770202094225,1.46213935,2260.9,2260.2,1.15227145]
[1770202094426,1.1913709,2260.8,2260.2,1.15227145]
[1770202094622,1.1913709,2260.4,2259.8,1.15227145]
[1770202095628,1.19572258,2260.4,2259.8,1.15670826]
[1770202098427,1.1913709,2260.2,2259.8,1.15670826]
[1770202098628,1.1913709,2260.2,2259.8,0.08697784]
[1770202098833,1.1913709,2260.2,2259.8,0.00443681]
[1770202100241,1.19572258,2260.4,2259.8,0.00443681]
[1770202100533,5.52372258,2260.4,2259.8,1.15670826]
[1770202100827,0.00435168,2260.4,2259.8,1.15670826]
[1770202101435,1.16578258,2260.4,2259.8,1.15670826]
[1770202105037,0.00435168,2260.4,2259.8,1.15670826]
[1770202105237,1.16578258,2260.4,2259.8,0.00443681]
[1770202107140,1.16578258,2260.4,2259.8,1.11318231]
[1770202108842,1.16578258,2260.4,2259.8,0.00443681]
[1770202113050,1.1614309,2260.2,2259.8,0.00443681]
[1770202114847,5.49478258,2260.4,2259.8,1.11318231]
[1770202119149,8.14734594,2260.4,2259.8,1.11318231]
[1770202121355,1.16578258,2260.4,2259.8,1.11318231]
[1770202122353,27.77576753,2260.5,2260.2,1.46401472]
[1770202122655,1.23173423,2261.3,2260.5,0.22151]
[1770202122855,1.23173423,2261.3,2260.6,7.19248518]
[1770202123154,1.23173423,2261.3,2260.6,2.64306607]
[1770202123354,1.23652092,2261.3,2260.6,2.64306607]
[1770202123752,1.23652092,2261.3,2260.7,7.12811356]
[1770202123947,1.19187522,2261.1,2260.6,2.64306607]
[1770202124149,1.19187522,2261.1,2260.7,4.48510254]
[1770202124348,1.19187522,2261.1,2260.7,2.64306607]
[1770202125257,1.19187522,2261.1,2260.6,2.64306607]
[1770202125458,1.19188727,2260.9,2260.6,2.64306607]
[1770202126457,12.0,2261.2,2260.5,2.86457607]
[1770202126658,1.46401472,2260.9,2260.5,2.64306607]
[1770202126854,1.46401472,2260.9,2260.4,2.64306607]
[1770202127059,12.0,2260.8,2260.4,4.30067153]
[1770202127257,12.0,2260.8,2260.4,1.65760546]
[1770202127458,12.0,2260.8,2260.5,1.65760546]
[1770202127662,10.926,2260.8,2260.5,1.65760546]
[1770202128160,10.926,2260.8,2260.3,5.15244075]
[1770202128963,10.926,2260.8,2260.4,1.66567435]
[1770202132358,1.46401472,2260.7,2260.3,0.8438]
[1770202134259,1.46401472,2260.5,2260.1,2.64306607]
[1770202134457,0.17804258,2260.6,2260.0,4.29531783]
[1770202134661,10.926,2260.4,2260.1,1.65225176]
[1770202134855,11.10404258,2260.8,2260.1,1.65225176]
[1770202135264,0.19878941,2260.7,2260.0,2.64306607]
[1770202135565,10.926,2260.8,2260.2,1.6940369]
[1770202136064,11.1228232,2260.8,2260.2,0.0408]
[1770202137564,0.21467558,2260.7,2260.2,0.0408]
[1770202138460,0.2310497,2260.5,2260.2,0.0408]
[1770202138765,0.2310497,2260.5,2259.9,4.35493995]
[1770202138967,10.926,2260.4,2260.0,1.71187388]
[1770202140065,11.13599795,2260.4,2259.9,2.64306607]
[1770202140266,11.13599795,2260.4,2259.8,2.64750288]
[1770202140461,10.926,2260.4,2259.8,4.35937676]
[1770202140661,10.926,2260.4,2259.9,1.93343388]
[1770202141166,11.14063058,2260.4,2259.9,1.93343388]
[1770202141663,10.926,2260.4,2259.9,1.93343388]
[1770202144466,11.15628377,2260.4,2259.9,1.93343388]
[1770202144767,11.15628377,2260.4,2259.9,0.22156]
[1770202145265,10.926,2260.4,2259.9,1.93343388]
[1770202145463,11.16057377,2260.4,2259.9,1.93343388]
[1770202146066,11.16057377,2260.4,2259.9,0.22156]
[1770202146563,11.16057377,2260.4,2259.8,2.64750288]
[1770202146767,11.16057377,2260.4,2259.8,0.00443681]
[1770202147066,11.16057377,2260.4,2259.8,4.45788172]
[1770202147266,11.16057377,2260.4,2259.8,0.00443681]
[1770202147467,11.16057377,2260.4,2259.8,4.45795474]
[1770202147766,11.16057377,2260.4,2259.6,2.64306607]
[1770202147767,0.24373744,2260.3,2259.6,2.64306607]
[1770202148068,0.24373744,2260.3,2259.5,4.57653995]
[1770202148264,0.24265813,2260.1,2259.5,4.57653995]
[1770202148665,0.24265813,2260.1,2259.5,4.35493995]
[1770202148866,0.24668111,2259.9,2259.5,0.00395375]
[1770202149267,10.926,2259.8,2259.5,0.00395375]
[1770202149462,10.926,2259.8,2259.5,1.71582763]
[1770202149665,4.18568111,2260.3,2259.5,1.71582763]
[1770202149867,10.926,2260.4,2259.6,1.71187388]
[1770202150168,10.926,2260.4,2259.7,1.71187388]
[1770202152670,4.56981203,2260.7,2259.7,1.71187388]
[1770202152871,10.926,2260.6,2259.7,1.71187388]
[1770202153170,10.926,2260.6,2259.9,1.71187388]
[1770202162177,10.926,2260.6,2259.9,4.35314511]
[1770202162372,10.926,2260.6,2260.0,1.64417557]
[1770202162679,0.37118429,2260.9,2260.1,1.64417557]
[1770202163078,10.926,2260.8,2260.1,1.64417557]
[1770202164273,10.926,2260.8,2260.2,4.38261719]
[1770202164477,10.926,2260.8,2260.3,1.64417557]
[1770202165879,0.37702831,2260.7,2260.2,2.64688821]
[1770202166081,0.37702831,2260.7,2260.1,2.64688821]
[1770202166372,10.926,2260.6,2260.2,4.38008596]
[1770202166577,10.926,2260.6,2260.1,4.29106378]
[1770202166779,0.37955665,2260.5,2260.2,4.37975411]
[1770202166978,10.926,2260.6,2260.2,1.82994293]
[1770202167882,9.23882954,2260.6,2260.3,1.82052885]
[1770202174284,9.31447208,2260.6,2260.2,2.64688821]
[1770202174578,9.23882954,2260.6,2260.2,2.64688821]
[1770202175379,9.31493055,2260.6,2260.2,2.64688821]
[1770202175580,9.31493055,2260.6,2260.1,4.46621868]
[1770202175779,0.07610101,2260.5,2260.1,2.64688821]
[1770202175974,0.07610101,2260.5,2260.0,2.64264799]
[1770202176177,9.31844639,2260.4,2260.0,2.64264799]
[1770202176481,0.07961685,2260.6,2260.0,2.64264799]
[1770202178481,0.07961685,2260.6,2259.9,1.8178066]
[1770202178682,9.36709028,2260.5,2259.9,1.8178066]
[1770202178884,0.12826074,2260.5,2259.9,1.8178066]
[1770202179285,9.23882954,2260.4,2259.9,1.8178066]
[1770202179478,0.12826074,2260.5,2259.9,1.8178066]
[1770202179675,9.36721471,2260.4,2259.7,6.00689689]
[1770202179880,0.12838517,2260.4,2259.8,4.32987612]
[1770202180082,0.12838517,2260.4,2259.7,6.00689689]
[1770202180284,0.12838517,2260.4,2259.8,6.15672112]
[1770202180479,0.12838517,2260.4,2259.8,1.82684596]
[1770202181188,9.23882954,2260.3,2260.0,1.82684738]
[1770202181485,9.23882954,2260.8,2260.1,6.15546833]
[1770202181686,9.23882954,2260.8,2260.1,1.82684738]
[1770202182283,9.23882954,2260.8,2260.2,4.32858571]
[1770202182587,9.23882954,2260.8,2260.2,1.82688556]
[1770202182789,0.11525909,2260.9,2260.2,1.82688556]
[1770202182987,9.23882954,2260.8,2260.2,1.82688556]
[1770202190392,9.33850547,2260.8,2260.2,1.82688556]
[1770202190890,0.1030041,2260.6,2260.0,3.96510095]
[1770202191189,0.1030041,2260.6,2260.1,4.21331331]
[1770202191494,9.23882954,2260.5,2260.0,3.96510095]
[1770202191892,9.24062803,2260.5,2260.0,3.96510095]
[1770202192794,0.00179849,2260.5,2260.0,3.96510095]
[1770202193096,9.24019123,2260.4,2259.8,5.79917377]
[1770202193293,0.00136169,2260.4,2259.8,5.79917377]
[1770202194597,9.23882954,2260.6,2259.9,1.89009068]
[1770202195901,9.23882954,2260.6,2259.9,5.85519163]
[1770202196105,9.23882954,2260.6,2260.0,1.88590219]
[1770202203002,9.23882954,2260.6,2260.1,1.87875002]
[1770202203202,8.77460954,2260.6,2260.1,1.87875002]
[1770202203404,0.00478669,2261.3,2260.8,1.74481454]
[1770202203610,5.00887802,2261.2,2260.9,6.04467941]
[1770202203803,5.00887802,2261.2,2260.9,1.74481454]
[1770202203999,4.9140966,2261.2,2260.9,1.74481454]
[1770202204198,3.03123084,2261.2,2261.0,6.04114306]
[1770202204505,1.73695425,2261.7,2261.0,1.96626454]
[1770202204699,1.73695425,2261.9,2261.1,8.25463832]
[1770202205007,1.73695425,2261.9,2261.2,4.28994781]
[1770202205306,1.73695425,2261.9,2261.0,7.3945347]
[1770202205504,1.73695425,2261.9,2261.1,4.28380152]
[1770202205705,1.74233371,2261.9,2261.1,4.28380152]
[1770202206100,1.73695425,2261.4,2261.1,4.28380152]
[1770202206300,1.73695425,2261.2,2260.8,3.96469051]
[1770202206504,1.73695425,2261.2,2260.6,5.70950505]
[1770202206710,1.73695425,2261.2,2260.6,1.74481454]
[1770202207105,1.73695425,2261.6,2260.7,1.74481454]
[1770202207403,1.73695425,2261.6,2260.9,1.96627454]
[1770202207602,1.73695425,2261.6,2261.0,3.20839419]
[1770202208008,1.73695425,2261.6,2261.0,4.09229419]
[1770202209115,1.73695425,2261.6,2261.0,2.62871454]
[1770202210208,1.73695425,2261.6,2261.0,0.8839]
[1770202219719,1.73695425,2261.4,2261.0,0.8839]
[1770202220520,1.73695425,2261.2,2260.7,0.00412311]
[1770202223418,1.73695425,2261.2,2260.7,2.05291218]
[1770202224417,2.17654412,2261.4,2260.7,2.05291218]
[1770202224722,2.17654412,2261.7,2260.7,2.05291218]
[1770202225121,2.17654412,2261.6,2260.7,2.05291218]
[1770202225826,2.17654412,2261.4,2260.7,0.00412311]
[1770202226024,2.17654412,2261.2,2260.7,0.00412311]
[1770202227521,2.17654412,2261.2,2260.7,2.05291218]
[1770202227728,2.17654412,2261.6,2260.8,2.04878907]
[1770202228027,2.17654412,2261.4,2260.7,0.00412311]
[1770202230429,2.17654412,2261.2,2260.7,0.00412311]
[1770202230828,2.17654412,2261.0,2260.5,4.19140574]
[1770202232028,2.17654412,2261.0,2260.5,4.19665893]
[1770202232228,2.17654412,2261.0,2260.6,4.19140574]
[1770202233229,2.17654412,2261.0,2260.5,6.01873277]
[1770202233430,2.17654412,2261.0,2260.6,4.19823071]
[1770202233730,2.17654412,2261.0,2260.5,6.01873277]
[1770202233931,2.17654412,2261.0,2260.6,4.1988345]
[1770202234134,2.17654412,2261.0,2260.5,6.01873277]
[1770202234330,2.17654412,2261.0,2260.6,4.19904362]
[1770202234531,2.17654412,2261.0,2260.5,3.9699437]
[1770202234831,2.17654412,2261.0,2260.6,4.19942466]